{"text_format":"1","workbook":"xlsx","n_sheets":7,"sheets":["Capturing Data","User Guide","1. Data Collection","2. Session data","3. Data Format codes","4. Supporting evidence","5. Quick guide"],"not_rendered":{"charts":0,"images":1,"macros":1,"external_links":0,"defined_names":0,"comments":0,"pivot_tables":0},"unopened":[],"bounds":{"document_bytes":16777216,"sheet_cells":100000,"rows_first":2000,"rows_last":500,"rows_between":2000,"halvings":0,"cell_chars":16384,"cell_head_chars":4096},"cells_cut":0,"cells_raw":0,"read":"whole","date_system":"1900"}

{"sheet":"Capturing Data","index":0,"n_rows":5,"n_cols":2,"rows_kept":5,"cut":false,"hidden":false,"merged":[[0,10,2,32],[3,0,26,0],[3,1,3,32],[4,1,4,32],[5,1,23,32]]}
[]
[]
[]
[null,"Capturing Data: A Tool to Collect and Record Adult"]
[null,"Weight Management Service Data"]

{"sheet":"User Guide","index":1,"n_rows":30,"n_cols":1,"rows_kept":30,"cut":false,"hidden":false,"merged":[]}
["Capturing Data: A Tool to Collect and Record Adult Weight Management Service Data"]
[]
["The aim of this tool is to support the consistent collection and reporting of outcomes in tier 2 adult weight management services. This excel document contains a number of tabs, which are outlined below:"]
[]
["1. Data collection"]
["The table in this tab collects the following data about each service user:    "]
["• Personal/Demographic "]
["• Organisational"]
["• Primary Outcome Measures"]
["• Additional Outcome Measures"]
[]
["Personal/Demographic and Organisational data should be collected at the referral stage. "]
["Primary outcome measures should be collected at baseline, on completion of the programme, at 6 months post programme and at 12 months post programme"]
["Additional outcome measures could be collected at baseline, on completion of the programme, at 6 months post programme; at 12 months post programme and at 24 months post programme."]
["Please review the information in Data format codes, prior to completing this table"]
["When nearing the end of the table, please copy the final row (without personal information) to the next row. This will ensure the response options and formula for BMI are copied to the next row."]
[]
["2. Session data"]
["Please use the spreadsheet in this tab to record data from each individual session in the service. "]
["Each row represents one session"]
["Please review the information in Data format codes, prior to completing this table"]
[]
["3. Data format codes"]
["The table in this tab provides information on how the data should be entered into the Data collection and Session data spreadsheets. Please consult this tab prior to completing the tables in tabs Data collection and Session data."]
[]
["4. Supporting evidence"]
["This provides supporting evidence and the relevant web-links, such as validated questionnaires. It is important to ensure the tool is validated to measure the outcome you are interested in reporting on. "]
[]
["5. Quick guide"]
["This table is a quick guide to the primary and additional outcome measures which should be collected at each time point. "]

{"sheet":"1. Data Collection","index":2,"n_rows":24,"n_cols":126,"rows_kept":24,"cut":false,"hidden":false,"merged":[[1,125,2,125],[0,107,0,125],[1,106,2,106],[0,96,0,106],[1,122,2,122],[1,123,2,123],[1,124,2,124],[1,95,2,95],[0,85,0,95],[1,103,2,103],[1,104,2,104],[1,105,2,105],[1,96,2,96],[1,97,1,99],[1,100,1,102],[1,107,2,107],[1,116,1,118],[1,119,1,121],[1,115,2,115],[1,108,2,108],[1,109,2,109],[1,110,2,110],[1,92,2,92],[0,74,0,84],[1,74,2,74],[1,71,2,71],[1,72,2,72],[1,58,2,58],[0,63,0,73],[0,59,0,62],[0,43,0,49],[1,43,2,43],[1,44,2,44],[1,45,2,45],[1,46,2,46],[1,81,2,81],[1,83,2,83],[1,84,2,84],[1,75,1,77],[1,78,1,80],[1,82,2,82],[1,70,2,70],[1,63,2,63],[0,35,0,42],[1,42,2,42],[0,51,0,57],[1,54,2,54],[1,59,2,59],[1,60,2,60],[1,62,2,62],[1,61,2,61],[1,55,1,57],[1,52,2,52],[1,35,2,35],[1,36,2,36],[1,37,2,37],[1,38,2,38],[1,8,2,8],[1,9,2,9],[1,10,2,10],[1,11,2,11],[1,4,2,4],[1,5,2,5],[1,14,2,14],[1,6,2,6],[0,25,0,27],[0,0,0,23],[1,24,2,24],[1,0,2,0],[1,1,2,1],[1,2,2,2],[1,3,2,3],[1,15,2,15],[1,7,2,7],[1,31,2,31],[1,26,2,26],[1,29,2,29],[1,27,2,27],[1,28,2,28],[1,39,1,41],[1,51,2,51],[1,47,1,49],[1,32,1,34],[1,50,2,50],[0,28,0,34],[1,111,1,113],[1,114,2,114],[1,22,2,22],[1,23,2,23],[1,16,2,16],[1,25,2,25],[1,12,2,12],[1,19,2,19],[1,20,2,20],[1,13,2,13],[1,18,2,18],[1,17,2,17],[1,21,2,21],[1,53,2,53],[1,64,1,66],[1,67,1,69],[1,73,2,73],[1,93,2,93],[1,94,2,94],[1,86,1,88],[1,89,1,91],[1,85,2,85],[1,30,2,30]]}
["Personal / Demographic data",null,null,null,null,null,null,null,null,null,null,null,null,null,null,null,null,null,null,null,null,null,null,null,null,"Organisational data",null,null,"Primary outcome measures at baseline",null,null,null,null,null,null,"Primary outcome measures on completion of programme ",null,null,null,null,null,null,null,"Primary outcome measures at 6 months post programme ",null,null,null,null,null,null,null,"Primary outcome measures at 12 months post programme ",null,null,null,null,null,null,null,"Additional personal/demographic data (at referral stage)",null,null,null,"Additional outcome measures at baseline",null,null,null,null,null,null,null,null,null,null,"Additional outcome measures on completion of programme",null,null,null,null,null,null,null,null,null,null,"Additional outcome measures at 6 months post programme ",null,null,null,null,null,null,null,null,null,null,"Additional outcome measures at 12 months post programme ",null,null,null,null,null,null,null,null,null,null,"Additional outcome measures at 24 months post programme"]
["Client number","Surname","Forename","Address line 1","Address line 2","Address line 3","Address line 4","Postcode","Telephone","E-mail","Date of Birth                  (DD-MM-YYYY)","Gender","Does the individual consider themselves as having a learning disability","Description of learning disability ","Is individual on Severe Mental Illness (SMI) register","Does the individual consider themselves as having a disability","If yes, please state disability ","Disability \"other\"","Known co-morbidities","Known co-morbidities \"Other\"","Ethnicity","Religion","Employment Status","Sexual Orientation","Referral source","Date of referral reciept                                 (DD-MM-YYYY)","Repeat Referrals","Has client been referred into tier 3","Date of assessment (DD-MM-YYYY)","Height (m)","Weight (kg)","BMI (kg/m2)","Mental health and well-being ",null,null,"Date of assessment ","Height (m)","Weight (kg)","BMI (kg/m2)","Mental health and well-being ",null,null,"Provision of support following completion of programme","Date of assessment ","Height (m)","Weight (kg)","BMI (kg/m2)","Mental health and well-being ",null,null,"Provision of support following completion of programme","Date of assessment","Height (m)","Weight (kg)","BMI (kg/m2)","Mental health and well-being ",null,null,"Provision of support following completion of programme","Housing Tenure","Marital Status","Number of children","Is individual a smoker","Waist circumference (cm)","Dietary intake",null,null,"Physical activity",null,null,"Potential facilitators of / barriers to  lifestyle change (baseline)","Referral to smoking service","Referral to alcohol service","Referral to other services","Waist circumference (cm)","Dietary intake",null,null,"Physical activity",null,null,"Potential facilitators of / barriers to  lifestyle change","Referral to smoking service","Referral to alcohol service","Referral to other services","Waist circumference (cm)","Dietary intake",null,null,"Physical activity",null,null,"Potential facilitators of / barriers to  lifestyle change","Referral to smoking service","Referral to alcohol service","Referral to other services","Waist circumference (cm)","Dietary intake",null,null,"Physical activity",null,null,"Potential facilitators of / barriers to  lifestyle change","Referral to smoking service","Referral to alcohol service","Referral to other services","Date of assessment","Height (m)","Weight (kg)","BMI (kg/m2)","Mental health and well-being ",null,null,"Provision of support following completion of programme","Waist circumference (cm)","Dietary intake",null,null,"Physical activity",null,null,"Potential facilitators of / barriers to  lifestyle change","Referral to smoking service","Referral to alcohol service","Referral to other services"]
[null,null,null,null,null,null,null,null,null,null,null,null,null,null,null,null,null,null,null,null,null,null,null,null,null,null,null,null,null,null,null,null,"Mental health and well-being scale used","Mental health and well-being scale- \"other\"","Mental health and well-being score ",null,null,null,null,"Mental health and well-being scale used","Mental health and well-being scale- \"other\"","Mental health and well-being score ",null,null,null,null,null,"Mental health and well-being scale used","Mental health and well-being scale- \"other\"","Mental health and well-being score ",null,null,null,null,null,"Mental health and well-being scale used","Mental health and well-being scale- \"other\"","Mental health and well-being score ",null,null,null,null,null,null,"Dietary intake measure taken","Dietary intake measure used ","Dietary intake  measure used - \"other\"","Physical activity measure taken","Physical activity measure used","Physical activity measure used - \"other\"",null,null,null,null,null,"Dietary intake measure taken","Dietary intake measure used ","Dietary intake  measure used - \"other\"","Physical activity measure taken","Physical activity measure used","Physical activity measure used - \"other\"",null,null,null,null,null,"Dietary intake measure taken","Dietary intake measure used ","Dietary intake  measure used - \"other\"","Physical activity measure taken","Physical activity measure used","Physical activity measure used - \"other\"",null,null,null,null,null,"Dietary intake measure taken","Dietary intake measure used ","Dietary intake  measure used - \"other\"","Physical activity measure taken","Physical activity measure used","Physical activity measure used - \"other\"",null,null,null,null,null,null,null,null,"Mental health and well-being scale used","Mental health and well-being scale- \"other\"","Mental health and well-being score ",null,null,"Dietary intake measure taken","Dietary intake measure used ","Dietary intake  measure used - \"other\"","Physical activity measure taken","Physical activity measure used","Physical activity measure used - \"other\""]
["00054","Bloggs","Joe","5 Waterloo road",null,null,null,"SE6 8UG",1234567890,"joe.bloggs@gmail.com","1972-01-01","Male","No ",null,"No ","Yes","Hearing, Manual Dexterity",null,"Dyslipidaemia, Osteoarthritis",null,"White: English/Welsh/Scottish/Northern Irish/British","Christian ","Lower managerial and professional occupations","Heterosexual or Straight","Other health care professional","2017-02-06","No","No","2017-03-14",1.77,92.4,{"$f":"((AE4)/(AD4*AD4))","v":29.493440582208176},"Warwick- Edinburgh scale",null,42,null,null,null,{"$f":"((AL4)/(AK4*AK4))","v":{"$error":"#DIV/0!"}},null,null,null,null,null,null,null,{"$f":"((AT4)/(AS4*AS4))","v":{"$error":"#DIV/0!"}},null,null,null,null,null,null,null,{"$f":"((BB4)/(BA4*BA4))","v":{"$error":"#DIV/0!"}},null,null,null,null,"Ownded (includes owned outright or owned with a mortgage or loan)","Married / Civil Partner",1,"Yes",97.3,"Yes","Food diary",null,"Yes","Stanford 7-day Recall",null,"Lack of support from family and friends","Yes","No",null,null,null,null,null,null,null,null,null,null,null,null,null,null,null,null,null,null,null,null,null,null,null,null,null,null,null,null,null,null,null,null,null,null,null,null,null,{"$f":"((DF4)/(DE4*DE4))","v":{"$error":"#DIV/0!"}}]
[null,null,null,null,null,null,null,null,null,null,null,null,null,null,null,null,null,null,null,null,null,null,null,null,null,null,null,null,null,null,null,{"$error":"#DIV/0!"},null,null,null,null,null,null,{"$error":"#DIV/0!"},null,null,null,null,null,null,null,{"$error":"#DIV/0!"},null,null,null,null,null,null,null,{"$error":"#DIV/0!"},null,null,null,null,null,null,null,null,null,null,null,null,null,null,null,null,null,null,null,null,null,null,null,null,null,null,null,null,null,null,null,null,null,null,null,null,null,null,null,null,null,null,null,null,null,null,null,null,null,null,null,null,null,null,null,{"$error":"#DIV/0!"}]
[null,null,null,null,null,null,null,null,null,null,null,null,null,null,null,null,null,null,null,null,null,null,null,null,null,null,null,null,null,null,null,{"$error":"#DIV/0!"},null,null,null,null,null,null,{"$error":"#DIV/0!"},null,null,null,null,null,null,null,{"$error":"#DIV/0!"},null,null,null,null,null,null,null,{"$error":"#DIV/0!"},null,null,null,null,null,null,null,null,null,null,null,null,null,null,null,null,null,null,null,null,null,null,null,null,null,null,null,null,null,null,null,null,null,null,null,null,null,null,null,null,null,null,null,null,null,null,null,null,null,null,null,null,null,null,null,{"$error":"#DIV/0!"}]
[null,null,null,null,null,null,null,null,null,null,null,null,null,null,null,null,null,null,null,null,null,null,null,null,null,null,null,null,null,null,null,{"$error":"#DIV/0!"},null,null,null,null,null,null,{"$error":"#DIV/0!"},null,null,null,null,null,null,null,{"$error":"#DIV/0!"},null,null,null,null,null,null,null,{"$error":"#DIV/0!"},null,null,null,null,null,null,null,null,null,null,null,null,null,null,null,null,null,null,null,null,null,null,null,null,null,null,null,null,null,null,null,null,null,null,null,null,null,null,null,null,null,null,null,null,null,null,null,null,null,null,null,null,null,null,null,{"$error":"#DIV/0!"}]
[null,null,null,null,null,null,null,null,null,null,null,null,null,null,null,null,null,null,null,null,null,null,null,null,null,null,null,null,null,null,null,{"$error":"#DIV/0!"},null,null,null,null,null,null,{"$error":"#DIV/0!"},null,null,null,null,null,null,null,{"$error":"#DIV/0!"},null,null,null,null,null,null,null,{"$error":"#DIV/0!"},null,null,null,null,null,null,null,null,null,null,null,null,null,null,null,null,null,null,null,null,null,null,null,null,null,null,null,null,null,null,null,null,null,null,null,null,null,null,null,null,null,null,null,null,null,null,null,null,null,null,null,null,null,null,null,{"$error":"#DIV/0!"}]
[null,null,null,null,null,null,null,null,null,null,null,null,null,null,null,null,null,null,null,null,null,null,null,null,null,null,null,null,null,null,null,{"$error":"#DIV/0!"},null,null,null,null,null,null,{"$error":"#DIV/0!"},null,null,null,null,null,null,null,{"$error":"#DIV/0!"},null,null,null,null,null,null,null,{"$error":"#DIV/0!"},null,null,null,null,null,null,null,null,null,null,null,null,null,null,null,null,null,null,null,null,null,null,null,null,null,null,null,null,null,null,null,null,null,null,null,null,null,null,null,null,null,null,null,null,null,null,null,null,null,null,null,null,null,null,null,{"$error":"#DIV/0!"}]
[null,null,null,null,null,null,null,null,null,null,null,null,null,null,null,null,null,null,null,null,null,null,null,null,null,null,null,null,null,null,null,{"$error":"#DIV/0!"},null,null,null,null,null,null,{"$error":"#DIV/0!"},null,null,null,null,null,null,null,{"$error":"#DIV/0!"},null,null,null,null,null,null,null,{"$error":"#DIV/0!"},null,null,null,null,null,null,null,null,null,null,null,null,null,null,null,null,null,null,null,null,null,null,null,null,null,null,null,null,null,null,null,null,null,null,null,null,null,null,null,null,null,null,null,null,null,null,null,null,null,null,null,null,null,null,null,{"$error":"#DIV/0!"}]
[null,null,null,null,null,null,null,null,null,null,null,null,null,null,null,null,null,null,null,null,null,null,null,null,null,null,null,null,null,null,null,{"$error":"#DIV/0!"},null,null,null,null,null,null,{"$error":"#DIV/0!"},null,null,null,null,null,null,null,{"$error":"#DIV/0!"},null,null,null,null,null,null,null,{"$error":"#DIV/0!"},null,null,null,null,null,null,null,null,null,null,null,null,null,null,null,null,null,null,null,null,null,null,null,null,null,null,null,null,null,null,null,null,null,null,null,null,null,null,null,null,null,null,null,null,null,null,null,null,null,null,null,null,null,null,null,{"$error":"#DIV/0!"}]
[null,null,null,null,null,null,null,null,null,null,null,null,null,null,null,null,null,null,null,null,null,null,null,null,null,null,null,null,null,null,null,{"$error":"#DIV/0!"},null,null,null,null,null,null,{"$error":"#DIV/0!"},null,null,null,null,null,null,null,{"$error":"#DIV/0!"},null,null,null,null,null,null,null,{"$error":"#DIV/0!"},null,null,null,null,null,null,null,null,null,null,null,null,null,null,null,null,null,null,null,null,null,null,null,null,null,null,null,null,null,null,null,null,null,null,null,null,null,null,null,null,null,null,null,null,null,null,null,null,null,null,null,null,null,null,null,{"$error":"#DIV/0!"}]
[null,null,null,null,null,null,null,null,null,null,null,null,null,null,null,null,null,null,null,null,null,null,null,null,null,null,null,null,null,null,null,{"$error":"#DIV/0!"},null,null,null,null,null,null,{"$error":"#DIV/0!"},null,null,null,null,null,null,null,{"$error":"#DIV/0!"},null,null,null,null,null,null,null,{"$error":"#DIV/0!"},null,null,null,null,null,null,null,null,null,null,null,null,null,null,null,null,null,null,null,null,null,null,null,null,null,null,null,null,null,null,null,null,null,null,null,null,null,null,null,null,null,null,null,null,null,null,null,null,null,null,null,null,null,null,null,{"$error":"#DIV/0!"}]
[null,null,null,null,null,null,null,null,null,null,null,null,null,null,null,null,null,null,null,null,null,null,null,null,null,null,null,null,null,null,null,{"$error":"#DIV/0!"},null,null,null,null,null,null,{"$error":"#DIV/0!"},null,null,null,null,null,null,null,{"$error":"#DIV/0!"},null,null,null,null,null,null,null,{"$error":"#DIV/0!"},null,null,null,null,null,null,null,null,null,null,null,null,null,null,null,null,null,null,null,null,null,null,null,null,null,null,null,null,null,null,null,null,null,null,null,null,null,null,null,null,null,null,null,null,null,null,null,null,null,null,null,null,null,null,null,{"$error":"#DIV/0!"}]
[null,null,null,null,null,null,null,null,null,null,null,null,null,null,null,null,null,null,null,null,null,null,null,null,null,null,null,null,null,null,null,{"$error":"#DIV/0!"},null,null,null,null,null,null,{"$error":"#DIV/0!"},null,null,null,null,null,null,null,{"$error":"#DIV/0!"},null,null,null,null,null,null,null,{"$error":"#DIV/0!"},null,null,null,null,null,null,null,null,null,null,null,null,null,null,null,null,null,null,null,null,null,null,null,null,null,null,null,null,null,null,null,null,null,null,null,null,null,null,null,null,null,null,null,null,null,null,null,null,null,null,null,null,null,null,null,{"$error":"#DIV/0!"}]
[null,null,null,null,null,null,null,null,null,null,null,null,null,null,null,null,null,null,null,null,null,null,null,null,null,null,null,null,null,null,null,{"$error":"#DIV/0!"},null,null,null,null,null,null,{"$error":"#DIV/0!"},null,null,null,null,null,null,null,{"$error":"#DIV/0!"},null,null,null,null,null,null,null,{"$error":"#DIV/0!"},null,null,null,null,null,null,null,null,null,null,null,null,null,null,null,null,null,null,null,null,null,null,null,null,null,null,null,null,null,null,null,null,null,null,null,null,null,null,null,null,null,null,null,null,null,null,null,null,null,null,null,null,null,null,null,{"$error":"#DIV/0!"}]
[null,null,null,null,null,null,null,null,null,null,null,null,null,null,null,null,null,null,null,null,null,null,null,null,null,null,null,null,null,null,null,{"$error":"#DIV/0!"},null,null,null,null,null,null,{"$error":"#DIV/0!"},null,null,null,null,null,null,null,{"$error":"#DIV/0!"},null,null,null,null,null,null,null,{"$error":"#DIV/0!"},null,null,null,null,null,null,null,null,null,null,null,null,null,null,null,null,null,null,null,null,null,null,null,null,null,null,null,null,null,null,null,null,null,null,null,null,null,null,null,null,null,null,null,null,null,null,null,null,null,null,null,null,null,null,null,{"$error":"#DIV/0!"}]
[null,null,null,null,null,null,null,null,null,null,null,null,null,null,null,null,null,null,null,null,null,null,null,null,null,null,null,null,null,null,null,{"$error":"#DIV/0!"},null,null,null,null,null,null,{"$error":"#DIV/0!"},null,null,null,null,null,null,null,{"$error":"#DIV/0!"},null,null,null,null,null,null,null,{"$error":"#DIV/0!"},null,null,null,null,null,null,null,null,null,null,null,null,null,null,null,null,null,null,null,null,null,null,null,null,null,null,null,null,null,null,null,null,null,null,null,null,null,null,null,null,null,null,null,null,null,null,null,null,null,null,null,null,null,null,null,{"$error":"#DIV/0!"}]
[null,null,null,null,null,null,null,null,null,null,null,null,null,null,null,null,null,null,null,null,null,null,null,null,null,null,null,null,null,null,null,{"$error":"#DIV/0!"},null,null,null,null,null,null,{"$error":"#DIV/0!"},null,null,null,null,null,null,null,{"$error":"#DIV/0!"},null,null,null,null,null,null,null,{"$error":"#DIV/0!"},null,null,null,null,null,null,null,null,null,null,null,null,null,null,null,null,null,null,null,null,null,null,null,null,null,null,null,null,null,null,null,null,null,null,null,null,null,null,null,null,null,null,null,null,null,null,null,null,null,null,null,null,null,null,null,{"$error":"#DIV/0!"}]
[null,null,null,null,null,null,null,null,null,null,null,null,null,null,null,null,null,null,null,null,null,null,null,null,null,null,null,null,null,null,null,{"$error":"#DIV/0!"},null,null,null,null,null,null,{"$error":"#DIV/0!"},null,null,null,null,null,null,null,{"$error":"#DIV/0!"},null,null,null,null,null,null,null,{"$error":"#DIV/0!"},null,null,null,null,null,null,null,null,null,null,null,null,null,null,null,null,null,null,null,null,null,null,null,null,null,null,null,null,null,null,null,null,null,null,null,null,null,null,null,null,null,null,null,null,null,null,null,null,null,null,null,null,null,null,null,{"$error":"#DIV/0!"}]
[null,null,null,null,null,null,null,null,null,null,null,null,null,null,null,null,null,null,null,null,null,null,null,null,null,null,null,null,null,null,null,{"$error":"#DIV/0!"},null,null,null,null,null,null,{"$error":"#DIV/0!"},null,null,null,null,null,null,null,{"$error":"#DIV/0!"},null,null,null,null,null,null,null,{"$error":"#DIV/0!"},null,null,null,null,null,null,null,null,null,null,null,null,null,null,null,null,null,null,null,null,null,null,null,null,null,null,null,null,null,null,null,null,null,null,null,null,null,null,null,null,null,null,null,null,null,null,null,null,null,null,null,null,null,null,null,{"$error":"#DIV/0!"}]
[null,null,null,null,null,null,null,null,null,null,null,null,null,null,null,null,null,null,null,null,null,null,null,null,null,null,null,null,null,null,null,{"$error":"#DIV/0!"},null,null,null,null,null,null,{"$error":"#DIV/0!"},null,null,null,null,null,null,null,{"$error":"#DIV/0!"},null,null,null,null,null,null,null,{"$error":"#DIV/0!"},null,null,null,null,null,null,null,null,null,null,null,null,null,null,null,null,null,null,null,null,null,null,null,null,null,null,null,null,null,null,null,null,null,null,null,null,null,null,null,null,null,null,null,null,null,null,null,null,null,null,null,null,null,null,null,{"$error":"#DIV/0!"}]
[null,null,null,null,null,null,null,null,null,null,null,null,null,null,null,null,null,null,null,null,null,null,null,null,null,null,null,null,null,null,null,{"$error":"#DIV/0!"},null,null,null,null,null,null,{"$error":"#DIV/0!"},null,null,null,null,null,null,null,{"$error":"#DIV/0!"},null,null,null,null,null,null,null,{"$error":"#DIV/0!"},null,null,null,null,null,null,null,null,null,null,null,null,null,null,null,null,null,null,null,null,null,null,null,null,null,null,null,null,null,null,null,null,null,null,null,null,null,null,null,null,null,null,null,null,null,null,null,null,null,null,null,null,null,null,null,{"$error":"#DIV/0!"}]
[null,null,null,null,null,null,null,null,null,null,null,null,null,null,null,null,null,null,null,null,null,null,null,null,null,null,null,null,null,null,null,{"$error":"#DIV/0!"},null,null,null,null,null,null,{"$error":"#DIV/0!"},null,null,null,null,null,null,null,{"$error":"#DIV/0!"},null,null,null,null,null,null,null,{"$error":"#DIV/0!"},null,null,null,null,null,null,null,null,null,null,null,null,null,null,null,null,null,null,null,null,null,null,null,null,null,null,null,null,null,null,null,null,null,null,null,null,null,null,null,null,null,null,null,null,null,null,null,null,null,null,null,null,null,null,null,{"$error":"#DIV/0!"}]

{"sheet":"2. Session data","index":3,"n_rows":3,"n_cols":6,"rows_kept":3,"cut":false,"hidden":false,"merged":[[0,0,0,5]]}
["Programme session data"]
["Date of session","Record of attendance","Location of session (Postcode)","Time of session","Length of session (minutes)","Type and delivery of session"]
["2017-03-25","Attended ","SW 19 4DT","14:00:00",60,"Individual - Face to face, Group - Face to face"]

{"sheet":"3. Data Format codes","index":4,"n_rows":262,"n_cols":5,"rows_kept":262,"cut":false,"hidden":false,"merged":[[211,0,213,0],[211,1,213,1],[211,3,213,3],[211,4,213,4],[191,4,193,4],[194,0,196,0],[194,1,196,1],[194,3,196,3],[194,4,196,4],[203,0,208,0],[203,1,208,1],[203,3,208,3],[203,4,208,4],[225,0,227,0],[225,1,227,1],[225,3,227,3],[187,0,189,0],[187,3,189,3],[187,4,189,4],[154,4,159,4],[132,0,135,0],[246,0,246,4],[218,4,223,4],[225,4,227,4],[228,0,235,0],[228,1,235,1],[228,3,235,3],[136,0,136,4],[149,0,149,4],[238,4,240,4],[241,0,243,0],[241,1,243,1],[241,3,243,3],[241,4,243,4],[191,0,193,0],[191,1,193,1],[191,3,193,3],[248,0,251,0],[248,1,251,1],[141,3,146,3],[161,0,163,0],[161,1,163,1],[177,1,179,1],[177,0,179,0],[177,4,179,4],[177,3,179,3],[154,0,159,0],[154,1,159,1],[151,0,153,0],[151,1,153,1],[151,4,153,4],[238,0,240,0],[238,1,240,1],[238,3,240,3],[215,0,217,0],[215,1,217,1],[215,3,217,3],[215,4,217,4],[218,0,223,0],[218,1,223,1],[218,3,223,3],[255,0,261,0],[255,1,261,1],[248,3,251,3],[248,4,251,4],[255,3,261,3],[255,4,261,4],[121,1,125,1],[174,0,176,0],[174,1,176,1],[174,3,176,3],[174,4,176,4],[161,3,163,3],[161,4,163,4],[164,4,171,4],[151,3,153,3],[154,3,159,3],[132,4,135,4],[141,1,146,1],[141,0,146,0],[141,4,146,4],[164,3,171,3],[187,1,189,1],[164,0,171,0],[228,4,235,4],[1,0,1,3],[121,0,125,0],[121,3,125,3],[121,4,125,4],[50,3,68,3],[50,4,68,4],[10,0,13,0],[10,1,13,1],[10,3,13,3],[10,4,13,4],[14,0,16,0],[14,1,16,1],[14,3,16,3],[14,4,16,4],[24,0,36,0],[24,1,36,1],[24,3,36,3],[24,4,36,4],[38,1,48,1],[18,0,20,0],[18,4,20,4],[18,1,20,1],[18,3,20,3],[120,0,120,4],[109,3,115,3],[38,0,48,0],[38,3,48,3],[21,0,23,0],[21,3,23,3],[21,4,23,4],[88,0,94,0],[88,1,94,1],[88,3,94,3],[88,4,94,4],[21,1,23,1],[38,4,48,4],[79,0,87,0],[79,1,87,1],[79,3,87,3],[79,4,87,4],[69,0,78,0],[69,1,78,1],[69,3,78,3],[69,4,78,4],[50,0,68,0],[95,3,102,3],[116,3,119,3],[116,0,119,0],[109,1,115,1],[50,1,68,1],[95,0,102,0],[95,1,102,1],[198,0,198,4],[181,0,181,4],[116,4,119,4],[95,4,102,4],[127,3,131,3],[127,4,131,4],[127,1,131,1],[127,0,131,0],[132,3,135,3],[109,0,115,0],[109,4,115,4],[103,3,108,3],[103,4,108,4],[132,1,135,1],[103,1,108,1],[103,0,108,0],[116,1,119,1],[164,1,171,1]]}
["Data Item","Format","Data Values","Primary/Additional outcome measures","Notes for provider"]
["Personal/Demographic data"]
["Client number",null,null,"Primary","A number should be allocated to each client at the referral stage."]
["Surname",null,null,"Primary","This should be collected at the referral stage."]
["Forename",null,null,"Primary","This should be collected at the referral stage."]
["Address",null,null,"Primary","This should be collected at the referral stage."]
["Postcode",null,null,"Primary","This should be collected at the referral stage."]
["Telephone ",null,null,"Primary","This should be collected at the referral stage."]
["E-mail",null,null,"Primary","This should be collected at the referral stage."]
["Date of Birth","DD-MM-YYYY",null,"Primary","This should be collected at the referral stage."]
["Gender",null,"Male","Primary","This should be collected at the referral stage."]
[null,null,"Female"]
[null,null,"Person prefers not to say"]
[null,null,"Not known / not recorded"]
["Does the individual consider themselves as having a learning disability",null,"Yes","Primary","This should be collected at the referral stage."]
[null,null,"No "]
[null,null,"Not known / not recorded"]
["Description of learning disability",null,null,"Primary","This should be collected at the referral stage."]
["Is individual on Severe Mental Illness (SMI) Register",null,"Yes","Primary","This should be collected at the referral stage."]
[null,null,"No "]
[null,null,"Not known / not recorded"]
["Does the individual consider themselves as having a disability",null,"Yes","Primary","This should be collected at the referral stage."]
[null,null,"No"]
[null,null,"Not known / not recorded"]
["If yes, please state disability ","Please select all known disabilities","Behaviour and Emotional","Primary","This should be collected at the referral stage. "]
[null,null,"Hearing"]
[null,null,"Manual Dexterity"]
[null,null,"Memory or ability to concentrate, learn or understand (Learning Disability)"]
[null,null,"Mobility and Gross Motor"]
[null,null,"Perception of Physical Danger"]
[null,null,"Personal, Self-Care and Continence"]
[null,null,"Progressive Conditions and Physical Health (such as HIV, cancer, multiple sclerosis, fits etc.)"]
[null,null,"Sight"]
[null,null,"Speech"]
[null,null,"Other"]
[null,null,"No disability"]
[null,null,"Not known / recorded"]
["Disability \"other\"","Please provide details of any other known disabilities which are not listed.",null,"Primary","This should be collected at the referral stage."]
["Known co-morbidities ","Please select all known co-morbidities.","Cardiovascular disease","Primary","This should be collected at the referral stage. "]
[null,null,"Dyslipidaemia"]
[null,null,"Hypertension"]
[null,null,"Osteoarthritis"]
[null,null,"Sleep apnoea"]
[null,null,"Type 2 diabetes"]
[null,null,"Generalised anixety disorder"]
[null,null,"Depression"]
[null,null,"Chronic back pain"]
[null,null,"Other "]
[null,null,"Not known / recorded"]
["Known co-morbidities \"Other\"","Please provide details of any other known co-morbidities which are not listed.",null,"Primary","This should be collected at the referral stage."]
["Ethnicity",null,"White: English/Welsh/Scottish/Northern Irish/British","Primary","This should be collected at the referral stage."]
[null,null,"White: Irish"]
[null,null,"White: Gypsy or Irish Traveller"]
[null,null,"White: Other White"]
[null,null,"Mixed/multiple ethnic group: White and Black Caribbean"]
[null,null,"Mixed/multiple ethnic group: White and Black African"]
[null,null,"Mixed/multiple ethnic group: White and Asian"]
[null,null,"Mixed/multiple thnice group: Other mixed"]
[null,null,"Asian/Asian British: Indian"]
[null,null,"Asian/Asian British: Pakistani"]
[null,null,"Asian/Asian British: Bangladeshi"]
[null,null,"Asian/Asian British: Chinese"]
[null,null,"Asian/Asian British: Other Asian"]
[null,null,"Black/African/Caribbean/Black British: African"]
[null,null,"Black/African/Caribbean/Black British: Caribbean"]
[null,null,"Black/African/Caribbean/Black British: Other Black"]
[null,null,"Other ethnic group: Arab"]
[null,null,"Other ethnic group: Any other ethnic group"]
[null,null,"Not known / recorded"]
["Religion",null,"Christian ","Primary","This should be collected at the referral stage."]
[null,null,"Buddhist"]
[null,null,"Hindu"]
[null,null,"Jewish"]
[null,null,"Muslim"]
[null,null,"Sikh"]
[null,null,"Other religion"]
[null,null,"No religion"]
[null,null,"Person prefers not to say"]
[null,null,"Not known / recorded"]
["Employment Status",null,"Higher managerial and professional occupations (this includes large employers and higher managerial occupations)","Primary","This should be collected at the referral stage."]
[null,null,"Lower managerial and professional occupations"]
[null,null,"Intermediate occupations"]
[null,null,"Small employers and own account workers"]
[null,null,"Lower supervisory and technical occupations"]
[null,null,"Semi-routine occupations"]
[null,null,"Routine occupations"]
[null,null,"Never worked and long-term unemployed"]
[null,null,"Not classified (this includes Students; Occupations not classified or inadequately described; and Not classifiable for other reasons)"]
["Sexual Orientation",null,"Heterosexual or Straight","Primary","This should be collected at the referral stage."]
[null,null,"Gay or Lesbian"]
[null,null,"Bisexual"]
[null,null,"Other not listed"]
[null,null,"Person does not know or is not sure "]
[null,null,"Person prefers not to say"]
[null,null,"Not known / recorded"]
["Housing Tenure",null,"Ownded (includes owned outright or owned with a mortgage or loan)","Additional ","Additional personal/demographic data which could be collected at the referral stage"]
[null,null,"Shared ownership (part owned and part rented)"]
[null,null,"Social rented (rented from council/local authority)"]
[null,null,"Social rented other"]
[null,null,"Private rented (private landlord or letting agency)"]
[null,null,"Private rented other"]
[null,null,"Living rent free"]
[null,null,"Not known / recorded"]
["Marital Status",null,"Single","Additional ","Additional personal/demographic data which could be collected at the referral stage"]
[null,null,"Married / Civil Partner"]
[null,null,"Divorced/Person whose Civil Partnership has been dissolved"]
[null,null,"Widowed/Surviving Civil Partner"]
[null,null,"Separated"]
[null,null,"Not known / recorded"]
["Number of children",null,0,"Additional ","Additional personal/demographic data which could be collected at the referral stage"]
[null,null,1]
[null,null,2]
[null,null,3]
[null,null,4]
[null,null,">4"]
[null,null,"Not known / recorded"]
["Is individual a smoker",null,"Yes","Additional ","Additional personal/demographic data which could be collected at the referral stage"]
[null,null,"No "]
[null,null,"Previous smoker"]
[null,null,"Not known / recorded"]
["Organisational data"]
["Referral source",null,"GP","Primary","This should be collected at the referral stage."]
[null,null,"Other health care professional"]
[null,null,"Non-health professional"]
[null,null,"Self- referral"]
[null,null,"Not known / not recorded"]
["Date of referral receipt ","DD-MM-YYYY",null,"Primary","This should be collected at the referral stage."]
["Repeat referrals",null,"No","Primary","This should be collected at the referral stage."]
[null,null,"First"]
[null,null,"Second"]
[null,null,"Third"]
[null,null,"Not known / recorded"]
["Has client been referred into tier 3 ",null,"Yes","Primary","This should be collected at the referral stage."]
[null,null,"No"]
[null,null,"Referred from tier 3"]
[null,null,"Not known / recorded"]
["Primary outcome measures at baseline"]
["Date of assessment ","DD-MM-YYYY",null,"Primary","This should be collected at the referral stage. If this is not possible, it should be collected at pre-programme stage."]
["Height (m)","Measured in metres, to two decimal places",null,"Primary","This should be collected at the referral stage. If this is not possible, it should be collected at pre-programme stage."]
["Weight (kg)","Measured in kilograms, to two decimal places",null,"Primary","This should be collected at the referral stage. If this is not possible, it should be collected at pre-programme stage."]
["Body Mass Index (BMI, kg/m2)","Measured to two decimal places","This cell contains a formula which will automatically calculate BMI once height and weight are entered.","Primary","This should be collected at the referral stage. If this is not possible, it should be collected at pre-programme stage."]
["Mental health and well-being scale used",null,"Warwick- Edinburgh scale","Primary","Please see the supporting information for links to mental health and well-being scales. "]
[null,null,"Short Warwick - Edinburgh scale"]
[null,null,"SF 36 scale "]
[null,null,"EQ 5 D health questionnaire"]
[null,null,"Mental health and well-being scale: Other"]
[null,null,"Not known / recorded"]
["Mental health and well-being scale- \"other\"","Please provide detail of mental health and well-being scale used if not listed",null,"Primary"]
["Mental health and well-being score",null,null,"Primary"]
["Additional outcome measures at baseline"]
["Waist circumference  (cm)","Measured to two decimal places",null,"Additional "]
["Dietary intake measure taken",null,"Yes","Additional "]
[null,null,"No"]
[null,null,"Not known / recorded"]
["Dietary intake measure used ",null,"Food diary","Additional ","Please see the supporting information for links to dietary intake measures.                                                           Where more than one dietary intake measure or a combination of measures were used, please select \"other\" and provide details in next column."]
[null,null,"Golan Family Eating and Physical Activity Habits questionnaire"]
[null,null,"Food frequency questionnaire"]
[null,null,"24-hour diet recall "]
[null,null,"Dietary intake measure: other"]
[null,null,"Not known / recorded"]
["Dietary intake measure- \"other\"","Please provide detail of dietary intake measure used if not listed",null,"Additional "]
["Physical activity measure taken",null,"Yes","Additional "]
[null,null,"No"]
[null,null,"Not known / recorded"]
["Physical activity measure used",null,"Stanford 7-day Recall","Additional ","Please see the supporting information for links to physical activity measures.                                              Where more than one physical activitly measure or a combination of measures were used, please select \"other\" and provide details in next column."]
[null,null,"International Physical Activity Questionnaire"]
[null,null,"New Zealand Physical Activity Questionnaire"]
[null,null,"Seven Day Physical Activity Diary"]
[null,null,"Pedometer"]
[null,null,"Activity tracker"]
[null,null,"Physical activity measure: other"]
[null,null,"Not known / recorded"]
["Physical activity measure- \"other\"","Please provide detail of physical activity measure used if not listed",null,"Additional "]
["Potential facilitators of / barriers to  lifestyle change","Please provide details",null,"Additional "]
["Referral to smoking service",null,"Yes","Additional  "]
[null,null,"No"]
[null,null,"Not known / recorded"]
["Referral to alcohol service",null,"Yes","Additional  "]
[null,null,"No"]
[null,null,"Not known / recorded"]
["Referral to other service","Please provide details of referral to any other services",null,"Additional "]
["Primary and additional outcome measures on completion of programme, at 6 months post programme, and 12 months post programme"]
["Date of assessment ","DD-MM-YYYY",null,"Primary","This should be collected at the following time-points: post programme; at 6 months; and at 12 months"]
["Height (m)","Measured in metres, to two decimal places",null,"Primary","This should be collected at the following time-points: post programme; at 6 months; and at 12 months"]
["Weight (kg)","Measured in kilograms, to two decimal places",null,"Primary","This should be collected at the following time-points: post programme; at 6 months; and at 12 months"]
["Body Mass Index (BMI, kg/m2)","Measured to two decimal places","This cell contains a formula which will automatically calculate BMI once height and weight are entered.","Primary","This should be collected at the following time-points: post programme; at 6 months; and at 12 months"]
["Waist circumference (cm)","Measured to two decimal places",null,"Primary outcome measure, if collected at baseline","This should be collected at the following time-points: post programme; at 6 months; and at 12 months, if collected at baseline"]
["Provision of support following completion of programme",null,"Yes","Primary","This should be collected at the following time-points: post programme; at 6 months; and at 12 months"]
[null,null,"No"]
[null,null,"Not known / recorded"]
["Potential facilitators of / barriers to  lifestyle change ","Please provide details",null,"Additional outcome measure, if collected at baseline"]
["Referral to smoking service",null,"Yes","Additional  "]
[null,null,"No"]
[null,null,"Not known / recorded"]
["Referral to alcohol service",null,"Yes","Additional  "]
[null,null,"No"]
[null,null,"Not known / recorded"]
["Referral to other service","Please provide details of referral to any other services",null,"Additional "]
["Additional outcome measures at 24 months post programme"]
["Date of assessment ","DD-MM-YYYY",null,"Additional  "]
["Height (m)","Measured in metres, to two decimal places",null,"Additional  "]
["Weight (kg)","Measured in kilograms, to two decimal places",null,"Additional  "]
["Body Mass Index (BMI, kg/m2)","Measured to two decimal places","This cell contains a formula which will automatically calculate BMI once height and weight are entered.","Additional"]
["Mental health and well-being scale used",null,"Warwick- Edinburgh scale","Additional  ","Please see the supporting information for links to mental health and well-being scales. "]
[null,null,"Short Warwick - Edinburgh scale"]
[null,null,"SF 36 scale "]
[null,null,"EQ 5 D health questionnaire"]
[null,null,"Mental health and well-being scale: Other"]
[null,null,"Not known / recorded"]
["Mental health and well-being scale- \"other\"",null,null,"Additional  "]
["Mental health and well-being score",null,null,"Additional  "]
["Provision of support following completion of programme",null,"Yes","Additional  "]
[null,null,"No"]
[null,null,"Not known / recorded"]
["Waist circumference (cm)","Measured to two decimal places",null,"Additional"]
["Dietary intake measure taken",null,"Yes","Additional "]
[null,null,"No"]
[null,null,"Not known / recorded"]
["Dietary intake measure used ",null,"Food diary","Additional ","Please see the supporting information for links to dietary intake measures.                                                           Where more than one dietary intake measure or a combination of measures were used, please select \"other\" and provide details in next column."]
[null,null,"Golan Family Eating and Physical Activity Habits questionnaire"]
[null,null,"Food frequency questionnaire"]
[null,null,"24-hour diet recall "]
[null,null,"Dietary intake measure: other"]
[null,null,"Not known / recorded"]
["Dietary intake measure- \"other\"","Please provide detail of dietary intake measure used if not listed",null,"Additional "]
["Physical activity measure taken",null,"Yes","Additional "]
[null,null,"No"]
[null,null,"Not known / recorded"]
["Physical activity measure used",null,"Stanford 7-day Recall","Additional ","Please see the supporting information for links to physical activity measures.                                              Where more than one physical activitly measure or a combination of measures were used, please select \"other\" and provide details in next column."]
[null,null,"International Physical Activity Questionnaire"]
[null,null,"New Zealand Physical Activity Questionnaire"]
[null,null,"Seven Day Physical Activity Diary"]
[null,null,"Pedometer"]
[null,null,"Activity tracker"]
[null,null,"Physical activity measure: other"]
[null,null,"Not known / recorded"]
["Physical activity measure- \"other\"","Please provide detail of physical activity measure used if not listed",null,"Additional "]
["Potential facilitators of / barriers to  lifestyle change ","Please provide details",null,"Additional"]
["Referral to smoking service",null,"Yes","Additional  "]
[null,null,"No"]
[null,null,"Not known / recorded"]
["Referral to alcohol service",null,"Yes","Additional  "]
[null,null,"No"]
[null,null,"Not known / recorded"]
["Referral to other service","Please provide details of referral to any other services",null,"Additional "]
[]
["Programme session data"]
["Date of Session","DD-MM-YYYY",null,"Primary","This should be collected at each session"]
["Record of attendance ",null,"Attended ","Primary","This should be collected at each session"]
[null,null,"Did Not attend"]
[null,null,"Session Cancelled"]
[null,null,"Not known / Recorded "]
["Location of session (Postcode)",null,null,"Primary","This should be collected at each session"]
["Time of session","24 HOUR",null,"Primary","This should be collected at each session"]
["Length of session","IN MINUTES",null,"Primary","This should be collected at each session"]
["Type of session ",null,"Individual - Face to face","Primary","This should be collected at each session"]
[null,null,"Individual - Remote (telephone)"]
[null,null,"Individual - Remote (web-based)"]
[null,null,"Group - Face to face"]
[null,null,"Group - Remote (telephone)"]
[null,null,"Group - Remote (web-based)"]
[null,null,"Not known / Recorded "]

{"sheet":"4. Supporting evidence","index":5,"n_rows":27,"n_cols":2,"rows_kept":27,"cut":false,"hidden":false,"merged":[[20,0,22,0],[1,0,4,0],[5,0,10,0],[23,0,24,0],[0,0,0,1],[11,0,11,1],[17,0,17,1],[19,0,19,1]]}
["Supporting evidence"]
["Population/Demographics (JSNA;Obesity and disability briefing paper; Obesity and ethnicity briefing paper; The Equality Act)","NHS Digital, Joint Strategic Needs Assessment (JSNA): range of tools and resources to aid completion of JSNA"]
[null,"http://webarchive.nationalarchives.gov.uk/20170210161227/http:/www.noo.org.uk/NOO_pub/briefing_papers   "]
[null,"http://webarchive.nationalarchives.gov.uk/20170210161227/http:/www.noo.org.uk/NOO_pub/briefing_papers  "]
[null,"The Equality Act, 2010 "]
["Identification of overweight and obesity (NICE guidance; Obesity and ethnicity briefing paper; NHS Health checks; Key data on adult obesity and severe obesity)","National Institute for Health and Care Excellence, Clinical Guideline 189: Obesity: identification, assessment and management"]
[null,"http://webarchive.nationalarchives.gov.uk/20170210161227/http:/www.noo.org.uk/NOO_pub/briefing_papers   "]
[null,"NHS Health Checks (a national risk assessment, awareness and management programme targeting causes of preventable deaths): Overview, background and guidance documents"]
[null,"National Institute for Health and Care Excellence Public Health Guideline 53: Weight management: lifestyle services for overweight or obese adults"]
[null,"http://webarchive.nationalarchives.gov.uk/20170210161227/http:/www.noo.org.uk/NOO_about_obesity/adult_obesity  "]
[null,"http://webarchive.nationalarchives.gov.uk/20170210161227/http:/www.noo.org.uk/NOO_about_obesity/severe_obesity "]
["Mental health and wellbeing scales"]
["PHE Obesity and mental health briefing paper (2013)","http://webarchive.nationalarchives.gov.uk/20170210161227/http:/www.noo.org.uk/NOO_pub/briefing_papers   "]
["Warwick-Edinburgh Mental Well-being scale (WEMWBS)","The Warwick-Edinburgh Mental Well-being scale: A 14 item scale with 5 response categories"]
["Short Warwick-Edinburgh Mental Well-being scale (SWEMWBS)","The Short Warwick-Edinburgh Mental Well-being scale"]
["SF-36","The Short Form-36 (SF-36): A 36 item questionnaire which measures Quality of Life (QoL) across eight domains"]
["EQ-5D","EQ-5D standardised health questionnaire: A simple descriptive profile and a single index value for health status"]
["Dietary intake"]
["Golan Family Eating and Activity Habits Questionnaire","Golan, M & Weizman, A (1998) Reliability and validity of the Family Eating and Activity Habits Questionnaire. European Journal of Clinical Nutrition 52, 771-777"]
["Physical activity"]
["Stanford 7-day Recall","Blair SN et al (1985) Assessment of habitual physical activity by a seven-day recall in a community survey and controlled experiments. American Journal of Epidemiology 122 (5) 794-804"]
[null,"Mahabir et al. (2006) Comparison of energy expenditure estimates from 4 physical activity questionnaires with doubly labelled water estimates in postmenopausal women. American Society for Clinical Nutrition 84: 230-236"]
[null,"Blair SN et al. (1998) Activity Counselling Trial (ACT): rationale, design and methods. Medicine and Science in Sports and Exercise, 30, 1097-1106"]
["International Physical Activity Questionnaire","Craig, CL et al. (2003) International physical activity questionnaire: 12-country reliability and validity. Medicine and Science in Sport & Exercise 35(8): 1381-1395"]
[null,"Maddison, R et al. (2007) International Physical Activity Questionnaire (IPAQ) and New Zealand Physical Activity Questionnaire (NZPAQ): a doubly labelled water validation. International Journal of Behavioural Nutrition & Physical Activity 4:62"]
["New Zealand Physical Activity Questionnaire","Lawton, BA et al. (2008) Exercise on prescription for women aged 40-74 recruited through primary care: two year randomised controlled trial. British Medical Journal 337"]
["Seven Day Physical Activity Diary","Koebnick, C et al. (2005) Validation of a simplified physical activity record by doubly labeled water technique. International Journal of Obesity 29(3) 302-9"]

{"sheet":"5. Quick guide","index":6,"n_rows":86,"n_cols":3,"rows_kept":86,"cut":false,"hidden":false,"merged":[[79,0,79,2],[32,0,32,2],[53,0,53,2],[41,0,41,2],[1,0,1,2],[27,0,27,2],[61,0,61,2]]}
["Data Item","Primary outcome measure","Additional outcome measure"]
["Personal/Demographic data at referral or baseline"]
["Client number","Primary"]
["Surname","Primary"]
["Forename","Primary"]
["Address","Primary"]
["Postcode","Primary"]
["Telephone ","Primary"]
["E-mail","Primary"]
["Date of Birth","Primary"]
["Gender","Primary"]
["Does the individual consider themselves as having a learning disability","Primary"]
["Description of learning disability","Primary"]
["Is individual on Severe Mental Illness (SMI) Register","Primary"]
["Does the individual consider themselves as having a disability","Primary"]
["If yes, please state disability status","Primary"]
["Disability status \"other\"","Primary"]
["Known co-morbidities ","Primary"]
["Known co-morbidities \"Other\"","Primary"]
["Ethnicity","Primary"]
["Religion","Primary"]
["Employment Status","Primary"]
["Sexual Orientation","Primary"]
["Housing Tenure",null,"Additional "]
["Marital Status",null,"Additional "]
["Number of children",null,"Additional "]
["Is individual a smoker",null,"Additional "]
["Organisational data at referral and baseline"]
["Referral source","Primary"]
["Date of referral receipt ","Primary"]
["Repeat referrals","Primary"]
["Has client been referred into tier 3 ","Primary"]
["Primary outcome measures at baseline"]
["Date of assessment ","Primary"]
["Height (m)","Primary"]
["Weight (kg)","Primary"]
["Body Mass Index (BMI, kg/m2)","Primary"]
["Mental health and well-being scale used","Primary"]
["Mental health and well-being scale- \"other\"","Primary"]
["Mental health and well-being score","Primary"]
["Provision of support following completion of programme","Primary"]
["Additional outcome measures at baseline"]
["Waist circumference (cm)",null,"Additional "]
["Dietary intake measure taken",null,"Additional "]
["Dietary intake measure used ",null,"Additional "]
["Dietary intake measure- \"other\"",null,"Additional "]
["Physical activity measure taken",null,"Additional "]
["Physical activity measure used",null,"Additional "]
["Physical activity measure- \"other\"",null,"Additional "]
["Potential facilitators of / barriers to  lifestyle change",null,"Additional "]
["Referral to smoking service",null,"Additional  "]
["Referral to alcohol service",null,"Additional  "]
["Referral to other service",null,"Additional "]
["Primary and additional outcome measures on completion of programme, at 6 months post programme, and at 12 months post programme"]
["Date of assessment ","Primary"]
["Height (m)","Primary"]
["Weight (kg)","Primary"]
["Body Mass Index (BMI, kg/m2)","Primary"]
["Waist circumference (cm)","Primary outcome measure, if collected at baseline"]
["Provision of support following completion of programme","Primary"]
["Potential facilitators of / barriers to  lifestyle change ",null,"Additional outcome measure, if collected at baseline"]
["Additional outcome measures at 24 months post programme"]
["Date of assessment ",null,"Additional "]
["Height (m)",null,"Additional "]
["Weight (kg)",null,"Additional "]
["Body Mass Index (BMI, kg/m2)",null,"Additional "]
["Provision of support following completion of programme",null,"Additional "]
["Potential facilitators of / barriers to  lifestyle change ",null,"Additional "]
["Waist circumference  (cm)",null,"Additional "]
["Dietary intake measure taken",null,"Additional "]
["Dietary intake measure used ",null,"Additional "]
["Dietary intake measure- \"other\"",null,"Additional "]
["Physical activity measure taken",null,"Additional "]
["Physical activity measure used",null,"Additional "]
["Physical activity measure- \"other\"",null,"Additional "]
["Potential facilitators of / barriers to  lifestyle change",null,"Additional "]
["Referral to smoking service",null,"Additional  "]
["Referral to alcohol service",null,"Additional  "]
["Referral to other service",null,"Additional "]
["Programme session data at each session"]
["Date of Session","Primary"]
["Record of attendance ","Primary"]
["Location of session (Postcode)","Primary"]
["Time of session","Primary"]
["Length of session","Primary"]
["Type of session ","Primary"]